bitfinex-derivatives/quotes_BTCF0:USTF0_20241227
["timestamp","ask_amount","ask_price","bid_price","bid_amount"]
[1735263660362,0.15555641,96091.0,96084.0,0.052108]
[1735263660559,0.57456,96085.0,96084.0,0.052108]
[1735263660959,0.57456,96085.0,96084.0,0.093195]
[1735263661958,0.57956,96085.0,96084.0,0.093195]
[1735263662463,0.58156,96085.0,96084.0,0.093195]
[1735263664169,0.57656,96085.0,96084.0,0.096195]
[1735263665272,0.57456,96085.0,96084.0,0.098195]
[1735263665465,0.1369,96100.0,96091.0,0.052104]
[1735263665665,0.10693,96100.0,96099.0,0.0521]
[1735263665858,0.12419702,96116.0,96092.0,0.59605307]
[1735263666165,0.12419702,96116.0,96099.0,0.27500883]
[1735263666367,0.57456,96100.0,96099.0,0.11898024]
[1735263666572,0.57456,96100.0,96098.0,0.0521]
[1735263666760,0.57456,96093.0,96092.0,0.213104]
[1735263667568,0.57456,96093.0,96092.0,0.26501117]
[1735263668060,0.57456,96093.0,96092.0,0.27001117]
[1735263668260,0.57456,96093.0,96092.0,0.21790717]
[1735263668461,0.57456,96093.0,96092.0,0.27001117]
[1735263669264,0.57456,96093.0,96092.0,0.27201117]
[1735263671867,0.57456,96093.0,96092.0,0.11101117]
[1735263676777,0.1817,96114.0,96092.0,0.11101117]
[1735263676778,0.1817,96114.0,96111.0,0.052093]
[1735263676983,0.57456,96107.0,96098.0,0.0521]
[1735263677185,0.57456,96107.0,96099.0,0.1794]
[1735263677385,0.57456,96107.0,96099.0,0.29359157]
[1735263677886,0.57456,96107.0,96106.0,0.052096]
[1735263678271,0.24506,96107.0,96106.0,0.16601335]
[1735263678476,0.19994853,96130.0,96113.0,0.052092]
[1735263678678,0.24506,96112.0,96111.0,0.052093]
[1735263679091,0.24506,96112.0,96111.0,0.16612824]
[1735263680780,0.24806,96112.0,96111.0,0.16612824]
[1735263681090,0.24906,96112.0,96111.0,0.16612824]
[1735263682482,0.24906,96112.0,96111.0,0.052093]
[1735263682886,0.24906,96112.0,96111.0,0.10320412]
[1735263687708,0.24549998,96112.0,96111.0,0.10320412]
[1735263689407,0.24549998,96112.0,96111.0,0.21611615]
[1735263689798,0.24549998,96112.0,96111.0,0.10320412]
[1735263691204,0.24549998,96112.0,96111.0,0.21250709]
[1735263698108,0.12419702,96130.0,96111.0,0.22814709]
[1735263698611,0.12419702,96130.0,96112.0,0.01564]
[1735263698818,0.24149998,96123.0,96113.0,0.052092]
[1735263699021,0.12419702,96130.0,96115.0,0.104182]
[1735263699216,0.001,96130.0,96116.0,0.1929]
[1735263699409,0.001,96130.0,96118.0,0.052089]
[1735263699609,0.001,96130.0,96119.0,0.22606912]
[1735263699918,0.12419702,96133.0,96119.0,0.45663156]
[1735263700116,0.001,96123.0,96119.0,0.1857]
[1735263700320,0.001,96123.0,96119.0,0.4857]
[1735263701118,0.001,96123.0,96119.0,0.009]
[1735263701523,0.001,96123.0,96118.0,0.37008042]
[1735263701711,0.07565054,96150.0,96125.0,0.03996307]
[1735263701907,0.24149998,96125.0,96120.0,0.27246359]
[1735263702115,0.24149998,96125.0,96124.0,0.052086]
[1735263702418,0.24149998,96125.0,96124.0,0.16385965]
[1735263703531,0.24149998,96125.0,96124.0,0.16785965]
[1735263704123,0.24149998,96125.0,96124.0,0.17585965]
[1735263704725,0.12419702,96146.0,96145.0,0.052075]
[1735263705020,0.24149998,96144.0,96143.0,0.052076]
[1735263705418,0.24149998,96144.0,96143.0,0.16228701]
[1735263707618,0.32273577,96160.0,96153.0,0.052071]
[1735263707827,0.24149998,96151.0,96150.0,0.052072]
[1735263708213,0.24149998,96151.0,96150.0,0.16522537]
[1735263709717,0.24249998,96151.0,96150.0,0.16522537]
[1735263711931,0.20049998,96151.0,96150.0,0.16522537]
[1735263712920,0.18549998,96151.0,96150.0,0.16522537]
[1735263715236,0.14490247,96151.0,96150.0,0.16522537]
[1735263716134,0.10559248,96151.0,96150.0,0.11315337]
[1735263716431,0.10559248,96151.0,96148.0,0.052073]
[1735263716638,0.001,96151.0,96148.0,0.052073]
[1735263716834,0.10459248,96149.0,96148.0,0.052073]
[1735263717635,0.05459248,96149.0,96148.0,0.052073]
[1735263717936,0.05459248,96149.0,96148.0,0.067713]
[1735263718640,0.05559248,96149.0,96148.0,0.067713]
[1735263718932,0.05559248,96149.0,96143.0,0.05263985]
[1735263719136,0.05459248,96144.0,96139.0,0.34972]
[1735263719433,0.05459248,96140.0,96139.0,0.45422733]
[1735263719735,0.05459248,96140.0,96139.0,0.566062]
[1735263719938,0.1322,96148.0,96147.0,0.052074]
[1735263720330,0.18679248,96148.0,96147.0,0.16161276]
[1735263721031,0.18679248,96148.0,96147.0,0.052074]
[1735263721238,0.18779248,96148.0,96147.0,0.052074]
[1735263722231,0.155269,96159.0,96147.0,0.052074]
[1735263722429,0.15322145,96160.0,96159.0,0.052068]
[1735263722642,0.0887649,96160.0,96159.0,0.052068]
[1735263723629,0.12453576,96172.0,96159.0,0.001]
[1735263723845,0.05479617,96178.0,96160.0,0.07565054]
[1735263724144,0.05479617,96178.0,96172.0,0.052061]
[1735263724145,0.09327225,96173.0,96172.0,0.052061]
[1735263725331,0.09327225,96173.0,96160.0,0.001]
[1735263725534,0.07565054,96171.0,96160.0,0.001]
[1735263725839,0.1949,96170.0,96160.0,0.001]
[1735263726744,0.1949,96170.0,96159.0,0.04290804]
[1735263726947,0.1949,96170.0,96160.0,0.07665054]
[1735263727143,0.1949,96170.0,96168.0,0.052063]
[1735263727144,0.18815787,96170.0,96168.0,0.052063]
[1735263727440,0.18815787,96170.0,96160.0,0.002]
[1735263727636,0.18815787,96170.0,96163.0,0.052065]
[1735263727835,0.00010295,96169.0,96160.0,0.002]
[1735263728029,0.00010295,96169.0,96166.0,0.052063]
[1735263728743,0.00010295,96169.0,96162.0,0.24675932]
[1735263728744,0.00010295,96169.0,96167.0,0.052063]
[1735263729244,0.18940295,96169.0,96167.0,0.052063]
[1735263731334,0.14681082,96170.0,96167.0,0.052063]
[1735263731936,0.14681082,96170.0,96161.0,0.24675932]
[1735263732143,0.14681082,96170.0,96161.0,0.29882532]
[1735263732336,0.14681082,96170.0,96161.0,0.24675932]
[1735263733349,0.44681082,96170.0,96161.0,0.001]
[1735263733552,0.44681082,96170.0,96161.0,0.002]
[1735263734149,0.44681082,96170.0,96156.0,0.24675932]
[1735263734352,0.44681082,96170.0,96149.0,0.30868684]
[1735263734551,0.07565054,96160.0,96149.0,0.30868684]
[1735263734852,0.07565054,96160.0,96146.0,0.24718898]
[1735263735145,0.37565054,96160.0,96146.0,0.24718898]
[1735263735845,0.09327225,96162.0,96148.0,0.052074]
[1735263736046,0.05534631,96159.0,96156.0,0.002]
[1735263736851,0.05534631,96159.0,96151.0,0.052072]
[1735263737751,0.07565054,96166.0,96148.0,0.005]
[1735263737752,0.07565054,96166.0,96156.0,0.001]
[1735263737952,0.07565054,96166.0,96159.0,0.052068]
[1735263738144,0.07565054,96166.0,96161.0,0.052066]
[1735263739246,0.07565054,96166.0,96156.0,0.001]
[1735263739247,0.07665054,96166.0,96156.0,0.04359908]
[1735263739453,0.07665054,96166.0,96151.0,0.002]
[1735263739841,0.07665054,96166.0,96146.0,0.052075]
[1735263740142,0.07565054,96166.0,96161.0,0.052066]
[1735263740343,0.07665054,96166.0,96161.0,0.052066]
[1735263740542,0.07665054,96166.0,96144.0,0.0156]
[1735263740748,0.07665054,96166.0,96162.0,0.052066]
[1735263741253,0.07665054,96166.0,96163.0,0.052065]
[1735263741469,0.001,96166.0,96163.0,0.052065]
[1735263742242,0.1862,96169.0,96140.0,0.04397524]
[1735263742447,0.07565054,96150.0,96131.0,0.0156]
[1735263742650,0.5752,96149.0,96140.0,0.052078]
[1735263743252,0.5752,96149.0,96129.0,0.01564]
[1735263743453,0.09341305,96143.0,96129.0,0.05315601]
[1735263743647,0.09341305,96143.0,96137.0,0.052079]
[1735263744346,0.09341305,96144.0,96131.0,0.004]
[1735263744548,0.09341305,96144.0,96140.0,0.007]
[1735263745154,0.09341305,96144.0,96137.0,0.005]
[1735263745547,0.09341305,96144.0,96140.0,0.004]
[1735263745955,0.09341305,96143.0,96140.0,0.006]
[1735263746953,0.09341305,96147.0,96140.0,0.006]
[1735263747659,0.09341305,96147.0,96140.0,0.005]
[1735263747862,0.09341305,96148.0,96140.0,0.005]
[1735263748570,0.09341305,96148.0,96141.0,0.052077]
[1735263749261,0.47711306,96149.0,96141.0,0.052077]
[1735263749459,0.27851305,96149.0,96140.0,0.03946297]
[1735263749667,0.27851305,96149.0,96142.0,0.052077]
[1735263749959,0.09341305,96149.0,96148.0,0.052074]
[1735263750951,0.0015604,96163.0,96141.0,0.1942]
[1735263751255,0.0015604,96163.0,96154.0,0.05207]
[1735263751256,0.07565054,96160.0,96154.0,0.05207]
[1735263751654,0.0015604,96163.0,96154.0,0.05207]
[1735263752359,0.0015604,96163.0,96154.0,0.05307]
[1735263752565,0.0015604,96163.0,96155.0,0.05207]
[1735263752756,0.0015604,96163.0,96160.0,0.052067]
[1735263753152,0.07565054,96170.0,96162.0,0.052066]
[1735263753458,0.07565054,96170.0,96155.0,0.3838]
[1735263753765,0.07565054,96170.0,96167.0,0.052063]
[1735263753952,0.09341305,96171.0,96167.0,0.052063]
[1735263754354,0.07565054,96177.0,96167.0,0.052063]
[1735263754762,0.07565054,96177.0,96164.0,0.052065]
[1735263754964,0.09341305,96179.0,96164.0,0.052065]
[1735263755353,0.001,96177.0,96165.0,0.052064]
[1735263755555,0.07565054,96170.0,96165.0,0.052064]
[1735263756062,0.28251305,96185.0,96155.0,0.3838]
[1735263756063,0.09341305,96185.0,96155.0,0.3838]
[1735263756255,0.001,96179.0,96166.0,0.11953618]
[1735263756565,0.001,96179.0,96160.0,0.07565054]
[1735263756566,0.07565054,96190.0,96179.0,0.052057]
[1735263757063,0.07565054,96190.0,96181.0,0.052056]
[1735263757261,0.13316131,96192.0,96183.0,0.052055]
[1735263757652,0.13316131,96192.0,96164.0,0.1969]
[1735263757653,0.13316131,96192.0,96191.0,0.05205]
[1735263757854,0.13316131,96192.0,96179.0,0.0156]
[1735263757855,0.11554341,96192.0,96183.0,0.03794736]
[1735263758159,0.11554341,96192.0,96179.0,0.0156]
[1735263758357,0.11554341,96192.0,96180.0,0.426]
[1735263758565,0.001,96192.0,96188.0,0.052052]
[1735263758976,0.001,96192.0,96182.0,0.18524531]
[1735263759264,0.1,96200.0,96182.0,0.18524531]
[1735263759463,0.1,96200.0,96188.0,0.052052]
[1735263760271,0.1,96200.0,96190.0,0.052051]
[1735263760657,0.1,96200.0,96182.0,0.03729124]
[1735263760859,0.001,96192.0,96181.0,0.18524531]
[1735263761067,0.001,96192.0,96186.0,0.052053]
[1735263761564,0.102,96200.0,96181.0,0.22302215]
[1735263761868,0.102,96200.0,96193.0,0.052049]
[1735263762268,0.1,96200.0,96193.0,0.052049]
[1735263762768,0.1,96200.0,96194.0,0.052049]
[1735263763163,0.1,96200.0,96190.0,0.07565054]
[1735263763164,0.1,96200.0,96191.0,0.05205]
[1735263763363,0.1,96200.0,96197.0,0.052047]
[1735263763964,0.103,96200.0,96190.0,0.07565054]
[1735263764168,0.00060001,96219.0,96193.0,0.052049]
[1735263764377,0.18670596,96236.0,96209.0,0.15130108]
[1735263764562,0.18670596,96236.0,96226.0,0.07565054]
[1735263765264,0.65386001,96247.0,96227.0,0.052031]
[1735263765466,0.65386001,96247.0,96226.0,0.07565054]
[1735263765865,0.052021,96245.0,96226.0,0.03976628]
[1735263766168,0.052024,96241.0,96226.0,0.03976628]
[1735263766369,0.00155951,96244.0,96226.0,0.03676628]
[1735263766566,0.65386001,96247.0,96211.0,0.2124]
[1735263766567,0.65386001,96247.0,96233.0,0.052028]
[1735263766872,1.00532,96247.0,96220.0,0.07565054]
[1735263767074,0.07565054,96240.0,96217.0,0.052036]
[1735263767273,0.07565054,96230.0,96218.0,0.052036]
[1735263767475,0.07565054,96240.0,96218.0,0.052036]
[1735263767972,0.07565054,96240.0,96221.0,0.052034]
[1735263768374,0.07565054,96240.0,96217.0,0.003]
[1735263768579,0.07565054,96230.0,96218.0,0.001]
[1735263768966,0.07565054,96230.0,96217.0,0.003]
[1735263769276,0.07565054,96230.0,96221.0,0.003]
[1735263769475,0.07565054,96240.0,96221.0,0.005]
[1735263769676,0.07565054,96231.0,96221.0,0.002]
[1735263770277,0.052025,96239.0,96221.0,0.002]
[1735263770877,0.002,96230.0,96218.0,0.001]
[1735263771266,0.002,96230.0,96217.0,0.053036]
[1735263771678,0.07565054,96240.0,96221.0,0.002]
[1735263771873,0.07565054,96240.0,96221.0,0.005]
[1735263772077,0.07565054,96240.0,96221.0,0.057034]
[1735263772377,0.07565054,96240.0,96222.0,0.052034]
[1735263772683,0.002,96230.0,96222.0,0.052034]
[1735263772865,0.002,96230.0,96218.0,0.052036]
[1735263773380,0.052033,96224.0,96217.0,0.001]
[1735263773575,0.6758,96223.0,96217.0,0.03889369]
[1735263773772,0.6758,96223.0,96193.0,0.72392692]
[1735263773987,0.07565054,96210.0,96193.0,0.72392692]
[1735263774179,0.07565054,96220.0,96194.0,0.11411663]
[1735263774981,0.07565054,96220.0,96196.0,0.052048]
[1735263775182,0.07565054,96220.0,96194.0,0.11411663]
[1735263775382,0.07565054,96220.0,96193.0,0.72460692]
[1735263775576,0.07565054,96220.0,96197.0,0.11644993]
[1735263775878,0.07565054,96220.0,96194.0,0.002]
[1735263776187,0.07565054,96220.0,96195.0,0.11644993]
[1735263777484,0.07565054,96210.0,96195.0,0.11644993]
[1735263777784,0.07565054,96210.0,96196.0,0.0156]
[1735263777977,0.07565054,96220.0,96196.0,0.0156]
[1735263778289,0.07565054,96220.0,96197.0,0.11281861]
[1735263778583,0.07565054,96220.0,96197.0,0.12841861]
[1735263779081,0.07565054,96220.0,96197.0,0.0156]
[1735263779281,0.07565054,96220.0,96198.0,0.11876755]
[1735263780780,0.2235,96219.0,96198.0,0.17081355]
[1735263780972,0.4524,96219.0,96199.0,0.052046]
[1735263781176,0.2235,96219.0,96198.0,0.11876755]
[1735263781376,0.2235,96219.0,96197.0,0.0176]
[1735263781578,0.2235,96219.0,96198.0,0.11252761]
[1735263782080,0.07565054,96220.0,96198.0,0.11252761]
[1735263783288,0.07565054,96210.0,96198.0,0.11252761]
[1735263783787,0.07565054,96220.0,96198.0,0.11252761]
[1735263783980,0.07565054,96210.0,96198.0,0.11252761]
[1735263784182,0.07565054,96210.0,96198.0,0.001]
[1735263784387,0.2118,96209.0,96198.0,0.001]
[1735263785177,0.07565054,96208.0,96198.0,0.001]
[1735263785381,0.052043,96205.0,96198.0,0.001]
[1735263786391,0.263841,96209.0,96198.0,0.001]
[1735263786782,0.052046,96199.0,96198.0,0.001]
[1735263787080,0.052044,96204.0,96193.0,0.03742692]
[1735263787282,0.2337,96203.0,96198.0,0.001]
[1735263787879,0.2337,96203.0,96186.0,0.18524531]
[1735263788190,0.285744,96203.0,96198.0,0.007]
[1735263788776,0.052045,96201.0,96198.0,0.009]
[1735263789185,0.052045,96201.0,96182.0,0.09829749]
[1735263789494,0.2337,96203.0,96182.0,0.09829749]
[1735263789495,0.07565054,96192.0,96182.0,0.04624249]
[1735263789678,0.07565054,96192.0,96185.0,0.052054]
[1735263789878,0.07565054,96200.0,96185.0,0.052054]
[1735263790692,0.07565054,96200.0,96187.0,0.052053]
[1735263790889,0.07565054,96200.0,96181.0,0.04707827]
[1735263790890,0.07565054,96200.0,96185.0,0.18517142]
[1735263791193,0.07565054,96191.0,96185.0,0.18817142]
[1735263791695,0.07565054,96200.0,96185.0,0.18817142]
[1735263791883,0.07565054,96200.0,96187.0,0.002]
[1735263793183,0.07565054,96200.0,96187.0,0.006]
[1735263793398,0.07565054,96200.0,96187.0,0.004]
[1735263794693,0.07565054,96200.0,96187.0,0.006]
[1735263795389,0.07565054,96200.0,96187.0,0.058053]
[1735263795886,0.07565054,96200.0,96187.0,0.006]
[1735263796486,0.37565054,96200.0,96187.0,0.004]
[1735263796788,0.052051,96191.0,96187.0,0.006]
[1735263796988,0.052052,96189.0,96187.0,0.006]
[1735263798093,0.052052,96189.0,96187.0,0.011]
[1735263798495,0.052052,96189.0,96181.0,9.576e-05]
[1735263799397,0.052052,96189.0,96187.0,0.001]
[1735263799995,0.052052,96189.0,96181.0,0.00209576]
[1735263800895,0.052052,96189.0,96187.0,0.001]
[1735263801592,0.052055,96182.0,96165.0,0.18517142]
[1735263801896,0.052061,96173.0,96168.0,0.04569153]
[1735263802093,0.052061,96172.0,96165.0,0.18517142]
[1735263802289,0.2244,96171.0,96165.0,0.18517142]
[1735263802681,0.00010527,96170.0,96165.0,0.18517142]
[1735263802887,0.052064,96167.0,96165.0,0.18517142]
[1735263803589,0.052064,96167.0,96165.0,0.18717142]
[1735263803789,0.052064,96167.0,96165.0,0.002]
[1735263804092,0.00010527,96170.0,96165.0,0.001]
[1735263804291,0.052064,96166.0,96165.0,0.001]
[1735263804787,0.3,96166.0,96147.0,0.18517142]
[1735263804987,0.20337008,96157.0,96147.0,0.18517142]
[1735263805198,0.2326,96156.0,96147.0,0.18517142]
[1735263805495,0.2326,96156.0,96147.0,0.04553862]
[1735263805701,0.2326,96156.0,96144.0,0.00156012]
[1735263806089,0.2326,96156.0,96144.0,0.05260217]
[1735263806489,0.2326,96156.0,96147.0,0.005]
[1735263807089,0.2326,96156.0,96147.0,0.003]
[1735263808001,0.2326,96156.0,96144.0,0.06060217]
[1735263808599,0.2326,96156.0,96147.0,0.005]
[1735263809285,0.2326,96156.0,96147.0,0.003]
[1735263809485,0.07565054,96157.0,96144.0,0.06060217]
[1735263809691,0.07565054,96157.0,96145.0,0.272175]
[1735263810193,0.07565054,96157.0,96147.0,0.002]
[1735263811100,0.07565054,96157.0,96147.0,0.005]
[1735263811507,0.07575581,96170.0,96149.0,0.052073]
[1735263811998,0.07575581,96170.0,96150.0,0.16774608]
[1735263812402,0.07575581,96170.0,96150.0,0.052072]
[1735263812603,0.07575581,96170.0,96151.0,0.11905194]
[1735263813702,0.00010527,96170.0,96165.0,0.052065]
[1735263813894,0.00110527,96170.0,96166.0,0.7019]
[1735263814407,0.00110527,96170.0,96151.0,0.01]
[1735263814589,0.07675581,96170.0,96160.0,0.052067]
[1735263814892,0.07575581,96170.0,96161.0,0.30068255]
[1735263815092,0.07575581,96170.0,96166.0,0.005]
[1735263815488,0.07575581,96170.0,96161.0,0.18517142]
[1735263815489,0.07675581,96170.0,96161.0,0.18517142]
[1735263815705,0.07775581,96170.0,96161.0,0.18517142]
[1735263816099,0.07775581,96170.0,96165.0,0.18517142]
[1735263816403,0.00110527,96170.0,96166.0,0.003]
[1735263816994,0.2188,96169.0,96165.0,0.18517142]
[1735263817194,0.2188,96169.0,96166.0,0.005]
[1735263818194,0.2188,96169.0,96165.0,0.005]
[1735263818598,0.2188,96169.0,96166.0,0.003]
[1735263818799,0.2188,96169.0,96166.0,0.005]
[1735263819299,0.2188,96169.0,96166.0,0.002]
[1735263819999,0.00010527,96170.0,96166.0,0.002]
[1735263820201,0.00010527,96170.0,96166.0,0.004]
[1735263820396,0.00010527,96170.0,96166.0,0.002]
[1735263821503,0.00010527,96170.0,96166.0,0.004]
[1735263821896,0.00010527,96170.0,96166.0,0.002]
[1735263822097,0.00010527,96170.0,96166.0,0.004]
[1735263822607,0.00010527,96170.0,96166.0,0.005]
[1735263823203,0.00010527,96170.0,96166.0,0.002]
[1735263823403,0.00010527,96170.0,96167.0,0.052064]
[1735263823606,0.00010527,96170.0,96169.0,0.052062]
[1735263824395,0.2000599,96190.0,96172.0,0.052061]
[1735263824600,0.2000599,96190.0,96173.0,0.6814]
[1735263824800,0.07565054,96190.0,96173.0,0.71993304]
[1735263824993,0.07565054,96190.0,96174.0,0.03853304]
[1735263825198,0.07565054,96190.0,96175.0,0.03853304]
[1735263825399,0.07565054,96190.0,96173.0,0.6814]
[1735263825903,0.07565054,96190.0,96177.0,0.18532162]
[1735263826902,0.07665054,96190.0,96177.0,0.18532162]
[1735263827209,0.07665054,96190.0,96174.0,0.052059]
[1735263827210,0.07665054,96190.0,96179.0,0.18532162]
[1735263827412,0.07665054,96190.0,96168.0,0.30861904]
[1735263827413,0.07565054,96189.0,96148.0,0.03847872]
[1735263827718,0.37565054,96190.0,96148.0,0.03847872]
[1735263827719,0.052068,96159.0,96148.0,0.03847872]
[1735263827897,0.052068,96159.0,96146.0,0.25582133]
[1735263828299,0.352068,96159.0,96146.0,0.25582133]
[1735263828503,0.3,96159.0,96146.0,0.25582133]
[1735263828703,0.052078,96140.0,96121.0,0.29702055]
[1735263828899,0.052085,96127.0,96121.0,0.29702055]
[1735263829100,0.15130108,96136.0,96101.0,0.4702]
[1735263829310,0.12774254,96116.0,96101.0,0.52096486]
[1735263829608,0.052094,96111.0,96101.0,0.2359]
[1735263829806,0.052094,96110.0,96101.0,0.2359]
[1735263830011,0.00011332,96109.0,96101.0,0.2359]
[1735263830210,0.12435846,96102.0,96101.0,0.2359]
[1735263830707,0.12435846,96102.0,96101.0,0.2449]
[1735263831307,0.12435846,96102.0,96101.0,0.2389]
[1735263831706,0.052098,96104.0,96101.0,0.003]
[1735263832013,0.052098,96104.0,96092.0,0.01564]
[1735263832201,0.07565054,96102.0,96092.0,0.06829969]
[1735263832407,0.052099,96101.0,96092.0,0.06829969]
[1735263832605,0.052099,96101.0,96091.0,0.01564]
[1735263833111,0.12403497,96101.0,96085.0,0.01564]
[1735263833310,0.07565054,96094.0,96092.0,0.003]
[1735263833497,0.052101,96099.0,96092.0,0.003]
[1735263833701,0.12403497,96101.0,96092.0,0.003]
[1735263834302,0.07565054,96102.0,96092.0,0.003]
[1735263834611,0.07565054,96102.0,96092.0,0.007]
[1735263835013,0.07565054,96102.0,96092.0,0.003]
[1735263835913,0.07565054,96102.0,96092.0,0.004]
[1735263836302,0.00011332,96109.0,96092.0,0.004]
[1735263837007,0.00011332,96109.0,96092.0,0.003]
[1735263837209,0.00011332,96109.0,96092.0,0.005]
[1735263837721,0.08000095,96122.0,96099.0,0.07565054]
[1735263837917,0.08000095,96122.0,96110.0,0.07565054]
[1735263837918,0.06308095,96122.0,96110.0,0.07565054]
[1735263838207,0.06308095,96122.0,96111.0,0.33856035]
[1735263838413,0.07565054,96140.0,96114.0,0.052092]
[1735263838915,0.07565054,96140.0,96115.0,0.10997713]
[1735263839409,0.07565054,96140.0,96115.0,0.16206913]
[1735263839617,0.07765054,96140.0,96115.0,0.16206913]
[1735263839811,0.07765054,96140.0,96115.0,0.052092]
[1735263840114,0.07765054,96140.0,96116.0,0.11839764]
[1735263840508,0.07565054,96140.0,96116.0,0.11839764]
[1735263841714,0.07665054,96140.0,96116.0,0.11839764]
[1735263841912,0.07665054,96140.0,96116.0,0.12239764]
[1735263842118,0.07565054,96140.0,96116.0,0.12239764]
[1735263842417,0.07665054,96140.0,96116.0,0.12839764]
[1735263842609,0.07665054,96140.0,96116.0,0.12439764]
[1735263842811,0.07665054,96140.0,96116.0,0.17948864]
[1735263843009,0.07665054,96140.0,96116.0,0.12739764]
[1735263843317,0.07665054,96140.0,96119.0,0.052089]
[1735263843717,0.07665054,96140.0,96120.0,0.11033624]
[1735263844314,0.07565054,96140.0,96120.0,0.11033624]
[1735263844513,0.07665054,96140.0,96120.0,0.11033624]
[1735263845317,0.052074,96149.0,96120.0,0.16642524]
[1735263845527,0.07565054,96160.0,96130.0,0.07565054]
[1735263845715,0.052068,96159.0,96130.0,0.12773454]
[1735263846021,0.052069,96158.0,96130.0,0.052084]
[1735263846414,0.052069,96158.0,96131.0,0.052083]
[1735263846920,0.052069,96158.0,96132.0,0.2436]
[1735263847316,0.052069,96157.0,96132.0,0.2436]
[1735263847623,0.00256106,96156.0,96132.0,0.2436]
[1735263848015,0.00156106,96156.0,96132.0,0.2436]
[1735263848214,0.00156106,96156.0,96132.0,0.2456]
[1735263848416,0.07565054,96150.0,96132.0,0.2456]
[1735263848817,0.07565054,96150.0,96132.0,0.297682]
[1735263849117,0.07565054,96150.0,96132.0,0.298682]
[1735263849714,0.07565054,96150.0,96132.0,0.34825535]
[1735263849915,0.07565054,96150.0,96132.0,0.35025535]
[1735263850918,0.07565054,96142.0,96132.0,0.05457335]
[1735263851118,0.052074,96149.0,96132.0,0.05457335]
[1735263851815,0.00156106,96156.0,96132.0,0.05457335]
[1735263851816,0.05207,96155.0,96132.0,0.05457335]
[1735263852021,0.05207,96155.0,96132.0,0.05357335]
[1735263852022,0.07565054,96150.0,96132.0,0.05357335]
[1735263852213,0.07565054,96150.0,96132.0,0.05457335]
[1735263852827,0.07565054,96150.0,96132.0,0.05257335]
[1735263853027,0.07565054,96150.0,96132.0,0.05457335]
[1735263853825,0.00156106,96156.0,96137.0,0.05208]
[1735263854027,0.00156106,96156.0,96132.0,0.05457335]
[1735263854222,0.00156106,96156.0,96133.0,0.052081]
[1735263854529,0.00156106,96156.0,96134.0,0.052081]
[1735263854728,0.00156106,96156.0,96135.0,0.2481]
[1735263854926,0.00156106,96156.0,96136.0,0.241]
[1735263855124,0.00156106,96156.0,96138.0,0.052079]
[1735263855429,0.00156106,96156.0,96139.0,0.052079]
[1735263855826,0.00156106,96156.0,96140.0,0.052078]
[1735263856534,0.00256106,96156.0,96140.0,0.052078]
[1735263857034,0.18661404,96171.0,96146.0,0.07565054]
[1735263857335,0.001,96156.0,96155.0,0.05207]
[1735263857630,0.22585716,96179.0,96162.0,0.052066]
[1735263857631,0.18661404,96174.0,96162.0,0.052066]
[1735263857825,0.18661404,96174.0,96163.0,0.7597]
[1735263858424,0.07565054,96180.0,96163.0,0.811766]
[1735263858827,0.004,96171.0,96163.0,0.811766]
[1735263859132,0.004,96171.0,96170.0,0.052062]
[1735263859927,0.07565054,96190.0,96170.0,0.052062]
[1735263859928,0.009,96174.0,96170.0,0.052062]
[1735263860525,0.07565054,96190.0,96170.0,0.052062]
[1735263860833,0.009,96171.0,96170.0,0.053062]
[1735263861333,0.015,96171.0,96170.0,0.054062]
[1735263862131,0.009,96174.0,96171.0,0.052061]
[1735263862431,0.009,96174.0,96170.0,0.001]
[1735263862631,0.1,96200.0,96182.0,0.052056]
[1735263863431,0.17565054,96200.0,96182.0,0.052056]
[1735263863632,0.17565054,96200.0,96170.0,0.07565054]
[1735263863633,0.1,96200.0,96170.0,0.07565054]
[1735263863829,0.00656001,96199.0,96182.0,0.001]
[1735263864037,0.052053,96187.0,96182.0,0.001]
[1735263864234,0.07565054,96192.0,96182.0,0.001]
[1735263864235,0.052054,96185.0,96182.0,0.001]
[1735263865328,0.056054,96185.0,96175.0,0.05297611]
[1735263865529,0.07965054,96185.0,96167.0,0.052064]
[1735263866335,0.07565054,96185.0,96167.0,0.052064]
[1735263866536,0.07765054,96185.0,96164.0,0.2388]
[1735263866733,0.07765054,96185.0,96163.0,0.54921639]
[1735263866935,0.07565054,96173.0,96167.0,0.003]
[1735263867941,0.07565054,96173.0,96167.0,0.004]
[1735263869536,0.07565054,96173.0,96167.0,0.001]
[1735263869735,0.07565054,96173.0,96167.0,0.005]
[1735263871242,0.07565054,96173.0,96167.0,0.004]
[1735263871740,0.07565054,96173.0,96167.0,0.001]
[1735263872045,0.07565054,96173.0,96167.0,0.004]
[1735263872832,0.07565054,96180.0,96167.0,0.005]
[1735263873432,0.49636001,96186.0,96167.0,0.005]
[1735263873637,0.2438,96186.0,96168.0,0.052063]
[1735263874849,0.2438,96186.0,96169.0,0.052063]
[1735263875044,0.07565054,96190.0,96174.0,0.05206]
[1735263875248,0.15520799,96194.0,96170.0,0.12000465]
[1735263875549,0.17565054,96200.0,96168.0,0.12400465]
[1735263875747,0.07565054,96190.0,96180.0,0.052056]
[1735263876543,0.07565054,96190.0,96168.0,0.001]
[1735263876741,0.07565054,96190.0,96181.0,0.052056]
[1735263877248,0.07665054,96190.0,96181.0,0.052056]
[1735263877840,0.07765054,96190.0,96181.0,0.052056]
[1735263878241,0.07965054,96190.0,96181.0,0.052056]
[1735263878441,0.07765054,96190.0,96181.0,0.052056]
[1735263878647,0.07965054,96190.0,96181.0,0.052056]
[1735263880849,0.004,96190.0,96181.0,0.052056]
[1735263883338,0.004,96190.0,96180.0,0.07565054]
[1735263883541,0.004,96190.0,96189.0,0.052052]
[1735263884347,0.002,96190.0,96189.0,0.052052]
[1735263884543,0.004,96190.0,96189.0,0.052052]
[1735263884945,0.002,96190.0,96189.0,0.052052]
[1735263885144,0.004,96190.0,96189.0,0.052052]
[1735263886045,0.002,96190.0,96189.0,0.052052]
[1735263886247,0.006,96190.0,96189.0,0.052052]